fUST/lending_fUST_20260122
["ID","MTS","AMOUNT","RATE_DAILY","PERIOD"]
[403018431,1769069432554,-673.0,0.00017226,2]
[403018432,1769069432564,-150.0,0.00017528,2]
[403018433,1769069432575,-369.13,0.00017658,2]
[403018434,1769069432584,-300.0,0.00017825,2]
[403018435,1769069432595,-971.0,0.00017825,2]
[403018436,1769069432604,-5955.83103469,0.00017826,2]
[403018437,1769069432615,-570.12998083,0.00017826,2]
[403018438,1769069432626,-10251.09542989,0.00017826,2]
[403018439,1769069432635,-433.1730049,0.00018016,2]
[403018479,1769069438555,-608.49366177,0.00018016,2]
[403018481,1769069438564,-3956.6418601,0.00018058,2]
[403018483,1769069438574,-272.1414724,0.00018164,2]
[403018485,1769069438583,-442.96,0.00018364,2]
[403018487,1769069438592,-500.0,0.00018999,2]
[403018489,1769069438601,-500.0,0.00018999,2]
[403018491,1769069438610,-350.02769447,0.00018999,2]
[403018493,1769069438621,-149.97230553,0.00018999,2]
[403018495,1769069438631,-500.0,0.00018999,2]
[403018497,1769069438641,-500.0,0.00018999,2]
[403018499,1769069438650,-500.0,0.00018999,2]
[403018501,1769069438659,-500.0,0.00018999,2]
[403018503,1769069438672,-643.97118829,0.00018999,2]
[403018505,1769069438682,-500.0,0.00018999,2]
[403018507,1769069438691,-500.0,0.00018999,2]
[403018509,1769069438700,-500.0,0.00018999,2]
[403018511,1769069438709,-500.0,0.00018999,2]
[403018513,1769069438718,-500.0,0.00018999,2]
[403018515,1769069438727,-500.0,0.00018999,2]
[403018516,1769069438735,-500.0,0.00018999,2]
[403018518,1769069438744,-500.0,0.00018999,2]
[403018520,1769069438754,-500.0,0.00018999,2]
[403018522,1769069438767,-500.0,0.00018999,2]
[403018524,1769069438776,-500.0,0.00018999,2]
[403018526,1769069438785,-500.0,0.00018999,2]
[403018528,1769069438795,-500.0,0.00018999,2]
[403018529,1769069438804,-500.0,0.00018999,2]
[403018531,1769069438813,-500.0,0.00018999,2]
[403018533,1769069438822,-500.0,0.00018999,2]
[403018535,1769069438831,-500.0,0.00018999,2]
[403018537,1769069438840,-500.0,0.00018999,2]
[403018539,1769069438849,-500.0,0.00018999,2]
[403018541,1769069438859,-283.53671383,0.00019,2]
[403018543,1769069438868,-44148.8879413,0.00019,2]
[403018545,1769069438878,-516.79,0.00019071,2]
[403018547,1769069438887,-4004.2633759,0.0001908,2]
[403018609,1769069440874,-44979.5,0.0001908,2]
[403018611,1769069440919,-1622.59911781,0.0001908,2]
[403018612,1769069440967,-925.28737466,0.0001908,2]
[403018613,1769069440977,-56595.47213388,0.00019101,3]
[403018614,1769069440986,-411.75,0.00019169,3]
[403018615,1769069440996,-163.86,0.00019177,2]
[403018616,1769069441006,-161.656,0.00019179,2]
[403018617,1769069441015,-155.0,0.00019183,2]
[403018618,1769069441025,-3565.0,0.000192,2]
[403018619,1769069441035,-150.14,0.000192,2]
[403018620,1769069441044,-151.0,0.000192,2]
[403018621,1769069441053,-158.0,0.00019342,3]
[403018622,1769069441063,-163.86,0.00019451,2]
[403018623,1769069441072,-420.0,0.00019452,2]
[403018624,1769069441082,-177.0,0.00019528,2]
[403018625,1769069441091,-350.01,0.00019698,2]
[403018626,1769069441100,-163.87800679,0.00019725,2]
[403018627,1769069441110,-590.61,0.00019777,2]
[403018628,1769069441119,-3029.28388044,0.0002,2]
[403018629,1769069441128,-486.94,0.00020086,2]
[403018630,1769069441138,-729.0,0.00020186,2]
[403018631,1769069441147,-283.53671379,0.00020225,2]
[403018632,1769069441156,-1368.0,0.00020429,2]
[403018633,1769069441165,-664.44,0.00020483,2]
[403018634,1769069441175,-2148.0,0.00020507,2]
[403018635,1769069441185,-5043.83,0.00020547,2]
[403018636,1769069441195,-417.0,0.00020553,2]
[403018637,1769069441204,-318.666,0.00020553,2]
[403018638,1769069441213,-879.376,0.00020878,2]
[403018639,1769069441223,-1780.1817457,0.00021092,2]
[403018640,1769069441232,-155.0,0.00021101,2]
[403018641,1769069441241,-995.97745479,0.00021136,2]
[403018642,1769069441250,-1315.80474718,0.00021136,2]
[403018643,1769069441260,-162.380719,0.00021153,2]
[403018644,1769069441269,-1957.856,0.00021153,2]
[403018645,1769069441279,-461.67526834,0.00021153,2]
[403018646,1769069441288,-2000.0,0.00021153,2]
[403018647,1769069441298,-2000.0,0.00021153,2]
[403018648,1769069441307,-2000.0,0.00021153,2]
[403018649,1769069441316,-2000.0,0.00021153,2]
[403018650,1769069441325,-2000.0,0.00021153,2]
[403018651,1769069441334,-2000.0,0.00021153,2]
[403018652,1769069441344,-2000.0,0.00021153,2]
[403018653,1769069441353,-1624.37146778,0.00021153,2]
[403018654,1769069441363,-2230.315306,0.00021153,2]
[403018655,1769069441371,-168.3888056,0.00021153,2]
[403018656,1769069441380,-174.61919141,0.00021153,2]
[403018657,1769069441390,-181.08010149,0.00021153,2]
[403018658,1769069441399,-187.78006525,0.00021153,2]
[403018659,1769069441408,-194.72792766,0.00021153,2]
[403018660,1769069441417,-201.93286099,0.00021153,2]
[403018661,1769069441426,-209.40437684,0.00021153,2]
[403018662,1769069441435,-217.15233878,0.00021153,2]
[403018663,1769069441445,-225.18697532,0.00021153,2]
[403018664,1769069441454,-233.51889341,0.00021153,2]
[403018665,1769069441463,-242.15909246,0.00021153,2]
[403018666,1769069441475,-251.11897888,0.00021153,2]
[403018667,1769069441485,-260.4103811,0.00021153,2]
[403018668,1769069441494,-270.0455652,0.00021153,2]
[403018669,1769069441504,-280.03725112,0.00021153,2]
[403018670,1769069441513,-290.39862941,0.00021153,2]
[403018671,1769069441523,-301.1433787,0.00021153,2]
[403018672,1769069441532,-10547.5576855,0.00021166,2]
[403018673,1769069441542,-151.0,0.00021166,2]
[403018674,1769069441552,-738.27,0.0002119,2]
[403018675,1769069441562,-151.0,0.00021208,2]
[403018676,1769069441571,-2030.296672,0.00021208,2]
[403018677,1769069441580,-587.0,0.00021228,2]
[403018678,1769069441590,-2105.41764886,0.00021263,2]
[403018679,1769069441599,-674.62006582,0.00021318,2]
[403018680,1769069441608,-283.53671379,0.0002145,2]
[403018681,1769069441618,-204.0,0.00021528,2]
[403018682,1769069441627,-478.75725327,0.00021701,2]
[403018683,1769069441636,-2071.160694,0.00021701,2]
[403018684,1769069441645,-150.0,0.00021918,2]
[403018685,1769069441656,-954.67,0.00022,7]
[403018686,1769069441665,-167.0,0.00022,2]
[403018687,1769069441676,-546.45530526,0.00022234,2]
[403018688,1769069441685,-983.61954946,0.00022234,2]
[403018689,1769069441695,-1748.65697682,0.00022234,2]
[403018690,1769069441705,-2732.27652628,0.00022234,2]
[403018691,1769069441715,-3934.47819784,0.00022234,2]
[403018692,1769069441725,-558.71290286,0.00022234,2]
[403018693,1769069441735,-1005.68322514,0.00022234,2]
[403018694,1769069441744,-1787.88128914,0.00022234,2]
[403018695,1769069441755,-2793.56451428,0.00022234,2]
[403018696,1769069441768,-4022.73290056,0.00022234,2]
[403018697,1769069441778,-5355.2619915,0.00022234,2]
[403018698,1769069441789,-1733.55628079,0.00022234,2]
[403018715,1769069446589,-3741.8301672,0.00022234,2]
[403018716,1769069446598,-496.47127164,0.00022249,2]
[403018717,1769069446610,-800.0,0.00022357,2]
[403018718,1769069446621,-800.0,0.000224,2]
[403018719,1769069446631,-300.0,0.00022466,2]
[403018720,1769069446640,-151.0,0.000226,7]
[403018721,1769069446651,-283.53671379,0.00022675,2]
[403018722,1769069446660,-514.84070869,0.00022797,2]
[403018723,1769069446670,-151.0,0.00023,10]
[403018724,1769069446679,-492.0,0.00023,7]
[403018725,1769069446688,-450.0,0.00023014,2]
[403018726,1769069446698,-167.0,0.00023014,7]
[403018727,1769069446707,-155.0,0.0002302,2]
[403018728,1769069446716,-1686.97066901,0.00023052,2]
[403018729,1769069446726,-823.0,0.00023167,2]
[403018730,1769069446735,-151.0,0.000232,2]
[403018731,1769069446744,-238.07744408,0.00023255,4]
[403018732,1769069446755,-250.6425792,0.00023255,4]
[403018733,1769069446767,-500.0,0.00023255,2]
[403018734,1769069446776,-500.0,0.00023255,2]
[403018735,1769069446786,-500.0,0.00023255,2]
[403018736,1769069446797,-500.0,0.00023255,2]
[403018737,1769069446810,-500.0,0.00023255,2]
[403018738,1769069446820,-500.0,0.00023255,2]
[403018739,1769069446830,-500.0,0.00023255,4]
[403018740,1769069446841,-500.0,0.00023255,2]
[403018741,1769069446852,-500.0,0.00023255,2]
[403018742,1769069446863,-500.0,0.00023255,2]
[403018743,1769069446873,-500.0,0.00023255,2]
[403018744,1769069446882,-248.53901183,0.00023255,2]
[403018745,1769069446891,-250.0,0.00023255,4]
[403018746,1769069446901,-250.0,0.00023255,4]
[403018747,1769069446910,-250.000001,0.00023255,4]
[403018748,1769069446920,-5043.83,0.00023287,4]
[403018749,1769069446930,-492.0,0.00023288,7]
[403018750,1769069446940,-380.3240709,0.00023333,2]
[403018751,1769069446950,-455.16577415,0.00023345,2]
[403018752,1769069446960,-500.0,0.00023392,4]
[403018753,1769069446969,-837.53231217,0.00023419,4]
[403018754,1769069446981,-1686.00041713,0.00023419,4]
[403018755,1769069446991,-1368.0,0.00023429,2]
[403018756,1769069447000,-151.0,0.000235,8]
[403018757,1769069447010,-231.0,0.00023528,2]
[403018758,1769069447020,-161.6102895,0.00023529,4]
[403018759,1769069447030,-160.0,0.00023542,3]
[403018760,1769069447039,-160.0,0.00023542,5]
[403018761,1769069447049,-401.822,0.00023553,2]
[403018762,1769069447059,-178.0,0.00023553,2]
[403018763,1769069447068,-492.0,0.00023562,7]
[403018764,1769069447077,-600.0,0.00023562,2]
[403018765,1769069447087,-174.0,0.00023567,120]
[403018766,1769069447098,-10000.0,0.000236,3]
[403018767,1769069447107,-174.0,0.00023607,120]
[403018768,1769069447116,-165.0,0.00023616,120]
[403018769,1769069447126,-526.24644693,0.00023639,4]
[403018770,1769069447328,-150.14,0.000238,7]
[403018771,1769069447338,-492.0,0.00023836,7]
[403018772,1769069447348,-2353.4782355,0.0002385,2]
[403018773,1769069447357,-3565.0,0.000239,14]
[403018774,1769069447367,-283.53671379,0.000239,2]
[403018775,1769069447376,-172.0,0.0002393,120]
[403018776,1769069447385,-8891.318125,0.0002393,30]
[403018777,1769069447394,-1672.61202903,0.0002397,19]
[403018778,1769069447403,-1525.715413,0.0002397,30]
[403018779,1769069447412,-1737.46125833,0.00024,2]
[403018780,1769069447421,-466.08366928,0.00024,2]
[403018781,1769069447431,-7140.71585025,0.00024,7]
[403018782,1769069447718,-348.01294213,0.00024,7]
[403018783,1769069495634,150.0,0.00015429,2]
[403018784,1769069495770,150.0,0.00016164,2]
[403018786,1769069536022,300.0,0.00013673,2]
[403018839,1769069566673,150.0,0.00015474,2]
[403018841,1769069567109,186.52,0.00016211,2]
[403018842,1769069589045,500.74694559,0.00013273,2]
[403018843,1769069590937,500.0,0.00013273,2]
[403018844,1769069594657,500.0,0.00013273,2]
[403018845,1769069597648,500.0,0.00013273,2]
[403018846,1769069601384,500.0,0.00013273,2]
[403018847,1769069603833,-155.60161972,0.00013699,2]
[403018848,1769069605321,-240.54574161,0.00013699,2]
[403018849,1769069613056,-103.85263867,0.00013699,2]
[403018850,1769069645421,150.0,0.00015598,2]
[403018851,1769069645859,177.96,0.0001634,2]
[403018852,1769069652128,501.08710733,0.00013273,2]
[403018853,1769069652156,500.9366246,0.00013273,2]
[403018854,1769069652270,305.67355886,0.00013273,2]
[403018857,1769069655748,501.72480489,0.00013273,2]
[403018858,1769069655776,502.04598716,0.00013273,2]
[403018859,1769069656453,500.64445994,0.00013273,2]
[403018860,1769069656610,156.82398169,0.00013273,2]
[403018861,1769069657219,-255.95,0.000169,2]
[403018862,1769069657248,-64.40479983,0.00017083,2]
[403018863,1769069658510,303.26558031,0.00013673,2]
[403018864,1769069658668,500.0,0.00013273,2]
[403018865,1769069659338,-202.52520017,0.00017083,2]
[403018866,1769069659362,-150.0,0.000172,2]
[403018867,1769069659385,-147.79879983,0.000175,2]
[403018868,1769069662618,-202.667,0.000175,2]
[403018869,1769069687740,-63.36420017,0.000175,2]
[403018870,1769069687769,-166.13304025,0.00017826,2]
[403018871,1769069688741,-189.77695975,0.00017826,2]
[403018872,1769069688770,-203.25358843,0.00018568,2]
[403018873,1769069702129,-241.63641157,0.00018568,2]
[403018874,1769069712165,171.90766048,0.00013273,2]
[403018875,1769069713242,500.0,0.00013273,2]
[403018876,1769069713782,201.81951638,0.00013273,2]
[403018877,1769069713804,299.78878215,0.00013273,2]
[403018878,1769069717251,502.49042086,0.00013273,2]
[403018879,1769069719782,509.85636903,0.00013273,2]
[403018880,1769069722613,500.90757332,0.00013699,2]
[403018881,1769069723143,507.98534086,0.00013273,2]
[403018882,1769069724389,150.0,0.00015709,2]
[403018883,1769069724820,150.0,0.00016457,2]
[403018884,1769069732929,-173.76,0.00017205,2]
[403018885,1769069737060,-39.88,0.00017205,2]
[403018886,1769069737092,-260.12,0.00017953,2]
[403018887,1769069808733,150.0,0.00015165,2]
[403018888,1769069809186,150.0,0.00015887,2]
[403018889,1769069809604,189.83,0.00016609,2]
[403018890,1769069821534,-253.1,0.00017331,2]
[403018891,1769069821563,-20.08318031,0.00018054,2]
[403018892,1769069826226,-221.35935075,0.00018054,2]
[403018893,1769069828184,500.0,0.00013273,2]
[403018897,1769069883931,500.39244791,0.00013273,2]
[403018898,1769069883962,501.04899705,0.00013273,2]
[403018899,1769069884688,478.889612,0.00013273,2]
[403018900,1769069884761,500.36586597,0.00013273,2]
[403018901,1769069885070,100.58720873,0.00013273,2]
[403018902,1769069885094,400.80723743,0.00013273,2]
[403018903,1769069886768,150.0,0.00015188,2]
[403018904,1769069887207,150.0,0.00015911,2]
[403018905,1769069887664,152.24,0.00016634,2]
[403018906,1769069892889,-202.99,0.00017357,2]
[403018907,1769069892922,-76.55327624,0.00018081,2]
[403018908,1769069946019,503.92943855,0.00013273,2]
[403018909,1769069962140,150.0,0.0001515,2]
[403018910,1769069963458,150.0,0.00015871,2]
[403018911,1769069964613,152.94,0.00016592,2]
[403018912,1769069968907,-203.92,0.00017314,2]
[403018913,1769069968940,-7.14737301,0.00018035,2]
[403018914,1769070007165,501.57185881,0.00013273,2]
[403018915,1769070007686,500.0,0.00013273,2]
[403018916,1769070007749,508.42835434,0.00013821,2]
[403018917,1769070007939,217.44804442,0.00013273,2]
[403018918,1769070009501,500.0,0.00013273,2]
[403018919,1769070040852,150.0,0.00015156,2]
[403018920,1769070041289,150.0,0.00015878,2]
[403018921,1769070041717,150.0,0.000166,2]
[403018923,1769070116699,150.0,0.00015295,2]
[403018924,1769070117104,150.0,0.00016024,2]
[403018925,1769070117502,150.0,0.00016752,2]
[403018926,1769070123833,500.0,0.00013273,2]
[403018927,1769070141688,-150.0,0.00017481,2]
[403018928,1769070183950,501.50463274,0.00013273,2]
[403018929,1769070183979,283.87564453,0.00013273,2]
[403018930,1769070184063,264.67587913,0.00013273,2]
[403018931,1769070184333,501.52283773,0.00013273,2]
[403018932,1769070184461,501.75166472,0.00013273,2]
[403018933,1769070187804,501.73068259,0.00013273,2]
[403018934,1769070188332,504.04040901,0.00013273,2]
[403018935,1769070194804,150.0,0.00015291,2]
[403018936,1769070195208,150.0,0.00016019,2]
[403018937,1769070195608,150.0,0.00016747,2]
[403018938,1769070196019,150.0,0.00017475,2]
[403018939,1769070206217,-150.0,0.00018204,2]
[403018940,1769070206247,-150.0,0.00018443,2]
[403018941,1769070267160,150.0,0.00015264,2]
[403018942,1769070267612,150.0,0.0001599,2]
[403018943,1769070268077,150.0,0.00016717,2]
[403018944,1769070268492,150.0,0.00017444,2]
[403018945,1769070268935,150.0,0.00018171,2]
[403018947,1769070293901,8650.01,0.00018,2]
[403018948,1769070293925,3548.99,0.00018,2]
[403018949,1769070337417,150.0,0.00014533,2]
[403018950,1769070338153,150.0,0.00015225,2]
[403018951,1769070338325,150.0,0.00015917,2]
[403018952,1769070338785,150.0,0.00016609,2]
[403018953,1769070339218,150.0,0.00017301,2]
[403018960,1769070515444,1041.66666667,0.000189,2]
[403018994,1769070632184,-300.0,0.00018999,2]
[403018996,1769070632196,-952.094928,0.00019,14]
[403018998,1769070632208,-8978.44425789,0.00019,14]
[403019000,1769070632220,-1744.52839776,0.00019,14]
[403019183,1769070639982,-500.0,0.00018999,2]
[403019184,1769070639992,-500.0,0.00018999,2]
[403019185,1769070640002,-500.0,0.00018999,2]
[403019186,1769070640011,-500.0,0.00018999,2]
[403019187,1769070640020,-297.9914878,0.00018999,2]
[403019188,1769070640030,-149.4045122,0.00018999,2]
[403019189,1769070640042,-350.5954878,0.00018999,2]
[403019190,1769070640051,-500.0,0.00018999,2]
[403019191,1769070640061,-500.0,0.00018999,2]
[403019192,1769070640071,-500.0,0.00018999,2]
[403019193,1769070640080,-500.0,0.00018999,2]
[403019194,1769070640090,-368.15813872,0.00018999,2]
[403019195,1769070640099,-500.0,0.00018999,2]
[403019196,1769070640108,-153.23461111,0.00018999,2]
[403019197,1769070640119,-346.76538889,0.00018999,2]
[403019198,1769070640128,-500.0,0.00018999,2]
[403019199,1769070640137,-500.0,0.00018999,2]
[403019200,1769070640147,-500.0,0.00018999,2]
[403019201,1769070640156,-500.0,0.00018999,2]
[403019202,1769070640165,-314.39711883,0.00018999,2]
[403019203,1769070640174,-500.0,0.00018999,2]
[403019204,1769070640183,-500.0,0.00018999,2]
[403019205,1769070640195,-500.0,0.00018999,2]
[403019206,1769070640205,-500.0,0.00018999,2]
[403019207,1769070640214,-500.0,0.00018999,2]
[403019208,1769070640223,-500.0,0.00018999,2]
[403019210,1769070640233,-300.0,0.00018999,2]
[403019212,1769070640242,-500.0,0.00018999,2]
[403019214,1769070640251,-500.0,0.00018999,2]
[403019216,1769070640260,-500.0,0.00018999,2]
[403019218,1769070640269,-500.0,0.00018999,2]
[403019220,1769070640279,-500.0,0.00018999,2]
[403019222,1769070640288,-500.0,0.00018999,2]
[403019223,1769070640299,-500.0,0.00018999,2]
[403019225,1769070640308,-500.0,0.00018999,2]
[403019227,1769070640317,-500.0,0.00018999,2]
[403019229,1769070640326,-500.0,0.00018999,2]
[403019231,1769070640335,-500.0,0.00018999,2]
[403019232,1769070640344,-500.0,0.00018999,2]
[403019234,1769070640353,-500.0,0.00018999,2]
[403019235,1769070640363,-418.30247831,0.00018999,2]
[403019237,1769070640374,-81.69752169,0.00018999,2]
[403019238,1769070640384,-500.0,0.00018999,2]
[403019239,1769070640395,-500.0,0.00018999,2]
[403019240,1769070640406,-500.0,0.00018999,2]
[403019241,1769070640416,-500.0,0.00018999,2]
[403019242,1769070640425,-289.12801206,0.00018999,2]
[403019243,1769070640435,-500.0,0.00018999,2]
[403019244,1769070640444,-500.0,0.00018999,2]
[403019245,1769070640454,-638.44382507,0.00018999,2]
[403019246,1769070640463,-38324.93241635,0.00019,14]
[403019247,1769070640473,-529.5,0.00019038,5]
[403019248,1769070640483,-336.5,0.00019038,5]
[403019249,1769070640492,-300.0,0.00019155,2]
[403019250,1769070640502,-150.0,0.00019455,2]
[403019251,1769070640511,-35770.16844548,0.0002,2]
[403019252,1769070640520,-154.90048202,0.0002014,2]
[403019253,1769070640529,-181.78516937,0.00020239,2]
[403019254,1769070640539,-330.42200131,0.00020239,2]
[403019255,1769070640548,-3876.0,0.0002024,2]
[403019256,1769070640557,-38081.79346783,0.00020545,2]
[403019257,1769070640569,-5931.01319234,0.00020545,2]
[403019258,1769070640580,-5131.38277024,0.00020545,2]
[403019259,1769070640592,-1084.902,0.00020545,2]
[403019260,1769070640806,-151.00000003,0.00020545,2]
[403019285,1769070656884,150.0,0.00015781,2]
[403019286,1769070657374,150.0,0.00016532,2]
[403019305,1769070667914,505.50609097,0.00013273,2]
[403019306,1769070673337,171.90766048,0.00013273,2]
[403019318,1769070677036,500.0,0.00013273,2]
[403019319,1769070677269,201.81951638,0.00013273,2]
[403019350,1769070761792,7279.1100655,0.000189,2]
[403019351,1769070761816,10000.01,0.000189,2]
[403019352,1769070761839,10000.01,0.000189,2]
[403019353,1769070761861,10000.01,0.000189,2]
[403019354,1769070761883,10000.01,0.000189,2]
[403019355,1769070761906,10000.01,0.000189,2]
[403019356,1769070761929,26.79586733,0.000189,2]
[403019357,1769070796043,500.0,0.00013273,2]
[403019358,1769070798050,500.0,0.00013273,2]
[403019359,1769070800554,500.0,0.00013699,2]
[403019360,1769070801294,500.0,0.00013273,2]
[403019361,1769070809069,-300.0,0.00018998,2]
[403019362,1769070821067,9400.01,0.00018998,2]
[403019363,1769070821089,10000.01,0.00018998,2]
[403019364,1769070821111,10000.01,0.00018998,2]
[403019365,1769070834263,10000.01,0.00018998,2]
[403019366,1769070834290,10000.01,0.00018998,2]
[403019367,1769070834312,10000.01,0.00018998,2]
[403019368,1769070834337,10000.01,0.00018998,2]
[403019369,1769070834363,10000.01,0.00018998,2]
[403019370,1769070834385,10000.01,0.00018998,2]
[403019371,1769070834407,10000.01,0.00018998,2]
[403019372,1769070838448,1041.66666667,0.00018993,2]
[403019373,1769070842629,300.0,0.00018998,2]
[403019374,1769070842802,500.94947727,0.00013699,2]
[403019375,1769070842958,501.66055919,0.00013699,2]
[403019376,1769070846383,7655.73329687,0.00018998,2]
[403019377,1769070846405,10000.01,0.00018998,2]
[403019378,1769070857250,-500.0,0.00013273,2]
[403019379,1769070857274,-57.50770517,0.00013673,2]
[403019380,1769070861201,-192.88672286,0.00013673,2]
[403019381,1769070864270,-49.60557197,0.00013673,2]
[403019382,1769070864301,-150.0,0.00015279,2]
[403019383,1769070864328,-69.74150012,0.00016007,2]
[403019384,1769070905201,-220.05953661,0.00013699,2]
[403019385,1769070910469,-150.7468441,0.00013273,2]
[403019386,1769070910490,-180.81417631,0.00013699,2]
[403019387,1769070913101,-100.0741311,0.00013699,2]
[403019388,1769070913124,-156.23620395,0.00013699,2]
[403019389,1769070915268,-294.57916758,0.00013699,2]
[403019390,1769070918863,-50.97264094,0.00013699,2]
[403019391,1769070918883,-153.3272204,0.00013699,2]
[403019392,1769070923200,-4.75320535,0.00013699,2]
[403019393,1769070923222,-152.67869851,0.00013699,2]
[403019394,1769070925569,-177.88070623,0.00013699,2]
[403019395,1769070928829,-157.51395129,0.00013699,2]
[403019396,1769070930294,-12.43493121,0.00013699,2]
[403019397,1769070930321,-285.61864265,0.00013699,2]
[403019398,1769070934297,-215.54324127,0.00013699,2]
[403019399,1769070934320,-205.43506998,0.00013699,2]
[403019400,1769070936481,-199.90763252,0.00013699,2]
[403019401,1769070939420,-95.28913306,0.00013699,2]
[403019402,1769070939442,-325.49158984,0.00013699,2]
[403019403,1769070949816,-176.85977839,0.00013699,2]
[403019404,1769070949836,-124.14022164,0.00013699,2]
[403019405,1769070952025,-348.08,0.00013699,2]
[403019406,1769070955824,-40.29102687,0.00013699,2]
[403019407,1769070955847,-136.31055402,0.00014853,2]
[403019408,1769070977036,-221.38748821,0.00013699,2]
[403019409,1769070981189,-160.03622394,0.00013699,2]
[403019410,1769070983759,-119.19760748,0.00013699,2]
[403019411,1769070983780,-160.19053434,0.00013699,2]
[403019412,1769070983802,-46.73563424,0.00013699,2]
[403019413,1769070985781,-300.0,0.00013699,2]
[403019414,1769070988855,-155.05056006,0.00013699,2]
[403019415,1769070988875,-167.77159567,0.00013699,2]
[403019416,1769070990848,-160.62911032,0.00013699,2]
[403019417,1769070993375,-172.19083217,0.00013699,2]
[403019418,1769070993400,-108.48014772,0.00013699,2]
[403019419,1769070996482,-243.96700496,0.00013699,2]
[403019420,1769070998555,-147.9471259,0.00013699,2]
[403019421,1769070998576,-126.81809115,0.00013699,2]
[403019422,1769071002918,-162.03799134,0.00013699,2]
[403019423,1769071037116,-211.46286514,0.00013699,2]
[403019424,1769071037138,-144.04713486,0.00013699,2]
[403019425,1769071040289,-216.98841911,0.00013699,2]
[403019426,1769071042351,-39.11062597,0.00013699,2]
[403019427,1769071042375,-158.76095492,0.00013699,2]
[403019428,1769071046824,-308.46,0.00013699,2]
[403019429,1769071050953,-43.97733224,0.00013699,2]
[403019430,1769071050976,-500.6165876,0.00013699,2]
[403019431,1769071050996,-27.42870072,0.00013699,2]
[403019432,1769071053645,-251.89487344,0.00013699,2]
[403019433,1769071056243,-221.18224154,0.00013699,2]
[403019434,1769071056264,-84.18901622,0.00013699,2]
[403019435,1769071097836,-73.89144537,0.00013699,2]
[403019436,1769071097858,-79.21855463,0.00013699,2]
[403019437,1769071100595,-298.89222607,0.00013699,2]
[403019438,1769071104398,-122.25476374,0.00013699,2]
[403019439,1769071104422,-103.95903389,0.00013699,2]
[403019440,1769071108263,-241.1592831,0.00013699,2]
[403019441,1769071144212,501.33090902,0.00013273,2]
[403019442,1769071145088,-168.24916216,0.00013699,2]
[403019443,1769071145114,-104.99114738,0.00013699,2]
[403019444,1769071146597,501.02089524,0.00013273,2]
[403019445,1769071150224,-202.24594434,0.00013699,2]
[403019446,1769071153931,-193.43764063,0.00013699,2]
[403019447,1769071153959,-109.32214495,0.00013699,2]
[403019448,1769071156468,-275.04427008,0.00013699,2]
[403019449,1769071160669,-117.8201887,0.00013699,2]
[403019450,1769071160693,-64.20900159,0.00013699,2]
[403019451,1769071162687,-204.68825192,0.00013699,2]
[403019452,1769071165452,-340.45554985,0.00013699,2]
[403019453,1769071165474,-53.33712892,0.00013699,2]
[403019454,1769071169437,-153.33799328,0.00013699,2]
[403019455,1769071176150,-173.23684724,0.00013699,2]
[403019456,1769071178382,-120.08803056,0.00013699,2]
[403019457,1769071178404,-153.8163375,0.00013699,2]
[403019458,1769071180706,-40.76813886,0.00013699,2]
[403019459,1769071180728,-132.30496476,0.00013717,2]
[403019460,1769071187420,-181.29022132,0.00013717,2]
[403019461,1769071191323,-34.79255862,0.00013717,2]